[Event "Betsys MČR v online bleskovém šachu 2021"]
[Site "Chess.com"]
[Date "2021.04.17"]
[Round "1"]
[White "SayQueen"]
[Black "Maty122"]
[Result "1-0"]
[WhiteElo "1996"]
[BlackElo "1193"]
[TimeControl "180+1"]
[EndTime "9:07:33 PDT"]
[Termination "Uživatel SayQueen zvítězil matem"]

1. e4 {[%clk 0:02:59.3]} 1... e5 {[%clk 0:02:59.3]} 2. Nf3 {[%clk 0:02:56.3]}
2... Nc6 {[%clk 0:02:58]} 3. Bb5 {[%clk 0:02:56.1]} 3... a6 {[%clk 0:02:55.4]}
4. Ba4 {[%clk 0:02:55.1]} 4... Nf6 {[%clk 0:02:53.1]} 5. O-O {[%clk 0:02:55.1]}
5... d6 {[%clk 0:02:45.3]} 6. Bxc6+ {[%clk 0:02:53]} 6... bxc6 {[%clk
0:02:44.3]} 7. d4 {[%clk 0:02:53]} 7... Be7 {[%clk 0:02:40.3]} 8. dxe5 {[%clk
0:02:51.6]} 8... dxe5 {[%clk 0:02:40.1]} 9. Qxd8+ {[%clk 0:02:51.3]} 9... Bxd8
{[%clk 0:02:39.2]} 10. Nxe5 {[%clk 0:02:51]} 10... O-O {[%clk 0:02:38.3]} 11. f3
{[%clk 0:02:46.5]} 11... Re8 {[%clk 0:02:32.5]} 12. Nxc6 {[%clk 0:02:44.3]}
12... Bb7 {[%clk 0:02:29.4]} 13. Nxd8 {[%clk 0:02:43.4]} 13... Raxd8 {[%clk
0:02:28.3]} 14. Nc3 {[%clk 0:02:43]} 14... Re6 {[%clk 0:02:24.4]} 15. Bg5 {[%clk
0:02:41.7]} 15... h6 {[%clk 0:02:19.3]} 16. Bxf6 {[%clk 0:02:38.8]} 16... Rxf6
{[%clk 0:02:19.1]} 17. Rad1 {[%clk 0:02:38.1]} 17... Rfd6 {[%clk 0:02:12.6]} 18.
Rxd6 {[%clk 0:02:36.9]} 18... Rxd6 {[%clk 0:02:08.4]} 19. Rd1 {[%clk 0:02:36.7]}
19... Kh7 {[%clk 0:02:01.4]} 20. Rxd6 {[%clk 0:02:32.9]} 20... cxd6 {[%clk
0:02:00.6]} 21. Kf2 {[%clk 0:02:31.8]} 21... Kg6 {[%clk 0:01:59.7]} 22. Ke3
{[%clk 0:02:31.3]} 22... Kf6 {[%clk 0:01:59.4]} 23. Kd4 {[%clk 0:02:30]} 23...
Ke6 {[%clk 0:01:54.7]} 24. Nd5 {[%clk 0:02:29.6]} 24... g5 {[%clk 0:01:29.1]}
25. c4 {[%clk 0:02:26]} 25... Bc6 {[%clk 0:01:24]} 26. Nc7+ {[%clk 0:02:20.2]}
26... Kd7 {[%clk 0:01:21.8]} 27. Nxa6 {[%clk 0:02:18.4]} 27... Ba4 {[%clk
0:01:20.6]} 28. b3 {[%clk 0:02:15.1]} 28... Bc6 {[%clk 0:01:15.3]} 29. Nb4
{[%clk 0:02:14.7]} 29... Bb7 {[%clk 0:01:08.4]} 30. c5 {[%clk 0:02:09.3]} 30...
dxc5+ {[%clk 0:01:02.2]} 31. Kxc5 {[%clk 0:02:09]} 31... Ke6 {[%clk 0:01:00.7]}
32. Kb6 {[%clk 0:01:59.6]} 32... Bc8 {[%clk 0:00:54.5]} 33. a4 {[%clk
0:01:55.3]} 33... f5 {[%clk 0:00:54.3]} 34. exf5+ {[%clk 0:01:50]} 34... Kxf5
{[%clk 0:00:53.8]} 35. a5 {[%clk 0:01:46.8]} 35... Kf4 {[%clk 0:00:53.6]} 36.
Nd5+ {[%clk 0:01:43.8]} 36... Ke5 {[%clk 0:00:47.6]} 37. Ne7 {[%clk 0:01:42.6]}
37... Be6 {[%clk 0:00:36.3]} 38. a6 {[%clk 0:01:39.3]} 38... Bxb3 {[%clk
0:00:32.1]} 39. a7 {[%clk 0:01:38.7]} 39... Ke6 {[%clk 0:00:24.7]} 40. Nc6
{[%clk 0:01:33.2]} 40... Bd5 {[%clk 0:00:13.6]} 41. a8=Q {[%clk 0:01:31.5]}
41... Kd6 {[%clk 0:00:13.9]} 42. Qd8+ {[%clk 0:01:28.2]} 42... Ke6 {[%clk
0:00:11.3]} 43. Kc5 {[%clk 0:01:24.1]} 43... Bxc6 {[%clk 0:00:09.9]} 44. Qd6+
{[%clk 0:01:19.2]} 44... Kf7 {[%clk 0:00:09.1]} 45. Kxc6 {[%clk 0:01:18]} 45...
Ke8 {[%clk 0:00:08.5]} 46. Qxh6 {[%clk 0:01:15.9]} 46... Kd8 {[%clk 0:00:06.8]}
47. Qf8# {[%clk 0:01:09.9]} 1-0

[Event "Betsys MČR v online bleskovém šachu 2021"]
[Site "Chess.com"]
[Date "2021.04.17"]
[Round "1"]
[White "martin1804"]
[Black "doktorovak"]
[Result "1-0"]
[WhiteElo "2306"]
[BlackElo "1664"]
[TimeControl "180+1"]
[EndTime "9:07:34 PDT"]
[Termination "Uživatel martin1804 zvítězil na čas"]

1. d4 {[%clk 0:02:59.4]} 1... d5 {[%clk 0:02:57.8]} 2. Nf3 {[%clk 0:02:57.9]}
2... e6 {[%clk 0:02:57.5]} 3. Bf4 {[%clk 0:02:57.4]} 3... c5 {[%clk 0:02:56.5]}
4. e3 {[%clk 0:02:55.1]} 4... Nc6 {[%clk 0:02:56.1]} 5. c3 {[%clk 0:02:49]} 5...
Nge7 {[%clk 0:02:54.2]} 6. Nbd2 {[%clk 0:02:44.3]} 6... Ng6 {[%clk 0:02:53.8]}
7. Bg3 {[%clk 0:02:42.8]} 7... Bd6 {[%clk 0:02:52.5]} 8. Bb5 {[%clk 0:02:25.6]}
8... O-O {[%clk 0:02:50.1]} 9. Qc2 {[%clk 0:02:08.9]} 9... a6 {[%clk 0:02:44.6]}
10. Bd3 {[%clk 0:02:06.6]} 10... c4 {[%clk 0:02:43.2]} 11. Be2 {[%clk
0:01:59.6]} 11... Re8 {[%clk 0:02:41.6]} 12. e4 {[%clk 0:01:43.7]} 12... Bf4
{[%clk 0:02:27]} 13. e5 {[%clk 0:01:38.5]} 13... Bxd2+ {[%clk 0:02:14.4]} 14.
Qxd2 {[%clk 0:01:29.7]} 14... Nce7 {[%clk 0:02:14.1]} 15. Nh4 {[%clk 0:01:13.7]}
15... Bd7 {[%clk 0:02:06.2]} 16. O-O {[%clk 0:01:10.1]} 16... b5 {[%clk
0:02:03.3]} 17. Nxg6 {[%clk 0:01:08.5]} 17... Nxg6 {[%clk 0:02:02.6]} 18. f4
{[%clk 0:01:08.9]} 18... f5 {[%clk 0:01:54.6]} 19. exf6 {[%clk 0:01:08.1]} 19...
Qxf6 {[%clk 0:01:53.9]} 20. Rae1 {[%clk 0:01:05.8]} 20... a5 {[%clk 0:01:49.3]}
21. Bg4 {[%clk 0:01:04.3]} 21... Ra6 {[%clk 0:01:37.6]} 22. Qf2 {[%clk 0:01:04]}
22... b4 {[%clk 0:01:31.9]} 23. h4 {[%clk 0:01:03.5]} 23... Nf8 {[%clk
0:01:28.9]} 24. h5 {[%clk 0:01:01.2]} 24... h6 {[%clk 0:01:27]} 25. Bh4 {[%clk
0:01:00.7]} 25... Qf7 {[%clk 0:01:22.1]} 26. Qg3 {[%clk 0:00:57.9]} 26... Bc8
{[%clk 0:00:53.6]} 27. Re5 {[%clk 0:00:57.4]} 27... Nd7 {[%clk 0:00:38]} 28. Bd1
{[%clk 0:00:50.7]} 28... Nxe5 {[%clk 0:00:24.5]} 29. fxe5 {[%clk 0:00:51.6]}
29... Qd7 {[%clk 0:00:20.6]} 30. Bc2 {[%clk 0:00:48.6]} 30... Rf8 {[%clk
0:00:14.4]} 31. Bh7+ {[%clk 0:00:28.5]} 31... Kxh7 {[%clk 0:00:06]} 32. Rxf8
{[%clk 0:00:29.4]} 1-0

[Event "Betsys MČR v online bleskovém šachu 2021"]
[Site "Chess.com"]
[Date "2021.04.17"]
[Round "1"]
[White "CrisBenton4"]
[Black "marfuss"]
[Result "0-1"]
[WhiteElo "1425"]
[BlackElo "2105"]
[TimeControl "180+1"]
[EndTime "9:07:34 PDT"]
[Termination "Uživatel marfuss zvítězil matem"]

1. Nf3 {[%clk 0:03:00.9]} 1... f5 {[%clk 0:02:59.7]} 2. g3 {[%clk 0:03:01]} 2...
Nf6 {[%clk 0:03:00.2]} 3. Bg2 {[%clk 0:03:00.6]} 3... g6 {[%clk 0:03:00.5]} 4.
O-O {[%clk 0:03:01.1]} 4... Bg7 {[%clk 0:03:01.1]} 5. d4 {[%clk 0:03:01.5]} 5...
d6 {[%clk 0:03:01.5]} 6. c4 {[%clk 0:03:02]} 6... O-O {[%clk 0:03:01.2]} 7. Nc3
{[%clk 0:03:02.5]} 7... c6 {[%clk 0:03:01.6]} 8. Re1 {[%clk 0:03:02.7]} 8... Na6
{[%clk 0:02:45.4]} 9. a3 {[%clk 0:03:00.7]} 9... Be6 {[%clk 0:02:32.8]} 10. d5
{[%clk 0:02:36]} 10... Bf7 {[%clk 0:02:12.8]} 11. Bg5 {[%clk 0:02:31]} 11... h6
{[%clk 0:02:01.6]} 12. Bxf6 {[%clk 0:02:22.6]} 12... Bxf6 {[%clk 0:02:02.5]} 13.
Qc2 {[%clk 0:02:22.4]} 13... e5 {[%clk 0:01:50.1]} 14. dxe6 {[%clk 0:02:19.3]}
14... Bxe6 {[%clk 0:01:50.4]} 15. b3 {[%clk 0:02:01.7]} 15... Nc5 {[%clk
0:01:36.1]} 16. Rad1 {[%clk 0:01:48]} 16... Qc7 {[%clk 0:01:26.3]} 17. Nd4
{[%clk 0:01:43.8]} 17... Bf7 {[%clk 0:01:15.7]} 18. Nf3 {[%clk 0:01:42.3]} 18...
Rad8 {[%clk 0:01:14.6]} 19. e3 {[%clk 0:01:37.7]} 19... a5 {[%clk 0:01:07.7]}
20. a4 {[%clk 0:01:36.4]} 20... Qb6 {[%clk 0:01:07.4]} 21. Nd2 {[%clk
0:01:00.6]} 21... Qb4 {[%clk 0:01:03.4]} 22. f4 {[%clk 0:00:51.3]} 22... Bxc3
{[%clk 0:01:01.4]} 23. e4 {[%clk 0:00:47.1]} 23... fxe4 {[%clk 0:00:57.1]} 24.
Bxe4 {[%clk 0:00:44.9]} 24... Nxe4 {[%clk 0:00:49.6]} 25. Rxe4 {[%clk
0:00:44.1]} 25... Rfe8 {[%clk 0:00:44]} 26. Rxe8+ {[%clk 0:00:36.9]} 26... Rxe8
{[%clk 0:00:44.9]} 27. Nb1 {[%clk 0:00:37.2]} 27... Re1+ {[%clk 0:00:36.8]} 28.
Rxe1 {[%clk 0:00:35.4]} 28... Bxe1 {[%clk 0:00:37.7]} 29. Qe2 {[%clk 0:00:21.2]}
29... Qc5+ {[%clk 0:00:31.6]} 30. Kh1 {[%clk 0:00:20.2]} 30... Bb4 {[%clk
0:00:28.2]} 31. Qe7 {[%clk 0:00:15]} 31... d5 {[%clk 0:00:25.6]} 32. Qxc5 {[%clk
0:00:07.9]} 32... Bxc5 {[%clk 0:00:25.4]} 33. cxd5 {[%clk 0:00:08.5]} 33...
Bxd5# {[%clk 0:00:26.3]} 0-1

[Event "Betsys MČR v online bleskovém šachu 2021"]
[Site "Chess.com"]
[Date "2021.04.17"]
[Round "1"]
[White "Stalri"]
[Black "AdeeJa"]
[Result "1-0"]
[WhiteElo "2190"]
[BlackElo "1539"]
[TimeControl "180+1"]
[EndTime "9:07:35 PDT"]
[Termination "Uživatel Stalri zvítězil matem"]

1. d4 {[%clk 0:03:00.9]} 1... Nf6 {[%clk 0:02:58.1]} 2. c4 {[%clk 0:03:00.3]}
2... g6 {[%clk 0:02:54.8]} 3. Nc3 {[%clk 0:02:59.6]} 3... Bg7 {[%clk 0:02:54.1]}
4. e4 {[%clk 0:02:59.2]} 4... d6 {[%clk 0:02:53.3]} 5. Nf3 {[%clk 0:02:57.7]}
5... O-O {[%clk 0:02:53]} 6. Be2 {[%clk 0:02:58]} 6... e5 {[%clk 0:02:46.6]} 7.
Be3 {[%clk 0:02:57.5]} 7... Nc6 {[%clk 0:02:40.2]} 8. d5 {[%clk 0:02:56.3]} 8...
Ne7 {[%clk 0:02:38.8]} 9. Nd2 {[%clk 0:02:56.7]} 9... Ne8 {[%clk 0:02:37.3]} 10.
f3 {[%clk 0:02:56.8]} 10... f5 {[%clk 0:02:36.8]} 11. Qb3 {[%clk 0:02:39]} 11...
f4 {[%clk 0:02:31.3]} 12. Bf2 {[%clk 0:02:38.7]} 12... Nf6 {[%clk 0:02:29.7]}
13. O-O-O {[%clk 0:02:38.6]} 13... Bd7 {[%clk 0:02:24.3]} 14. c5 {[%clk
0:02:33.7]} 14... Qe8 {[%clk 0:02:07.3]} 15. Qxb7 {[%clk 0:02:25.4]} 15... Rb8
{[%clk 0:01:39.8]} 16. Qxc7 {[%clk 0:02:24.8]} 16... Rc8 {[%clk 0:01:39.4]} 17.
Qxd6 {[%clk 0:02:22.8]} 17... Qd8 {[%clk 0:01:32.4]} 18. c6 {[%clk 0:02:16.6]}
18... Nxc6 {[%clk 0:01:24.2]} 19. dxc6 {[%clk 0:02:13.2]} 19... Rxc6 {[%clk
0:01:23.8]} 20. Qb4 {[%clk 0:02:04]} 20... Qc8 {[%clk 0:01:17.9]} 21. Kb1 {[%clk
0:02:02.1]} 21... Re8 {[%clk 0:01:14.2]} 22. h4 {[%clk 0:01:56.7]} 22... Be6
{[%clk 0:01:12.2]} 23. Bb5 {[%clk 0:01:50.7]} 23... Rc7 {[%clk 0:00:59.1]} 24.
Bxe8 {[%clk 0:01:48.6]} 24... Nxe8 {[%clk 0:00:54.8]} 25. h5 {[%clk 0:01:47.9]}
25... Rb7 {[%clk 0:00:51.1]} 26. Qa3 {[%clk 0:01:43.1]} 26... Nc7 {[%clk
0:00:45.6]} 27. hxg6 {[%clk 0:01:34.3]} 27... hxg6 {[%clk 0:00:44.4]} 28. Rc1
{[%clk 0:01:29.4]} 28... Qd7 {[%clk 0:00:38.9]} 29. Rhd1 {[%clk 0:01:21.9]}
29... Nb5 {[%clk 0:00:37]} 30. Nxb5 {[%clk 0:01:20.5]} 30... Qxb5 {[%clk
0:00:35.5]} 31. Nb3 {[%clk 0:00:48.2]} 31... Bf8 {[%clk 0:00:23]} 32. Bc5 {[%clk
0:00:40.4]} 32... Bxc5 {[%clk 0:00:11.1]} 33. Qxc5 {[%clk 0:00:39.9]} 33... Qe2
{[%clk 0:00:07.9]} 34. Rd8+ {[%clk 0:00:35.8]} 34... Kg7 {[%clk 0:00:07.1]} 35.
Qf8+ {[%clk 0:00:34.5]} 35... Kh7 {[%clk 0:00:05]} 36. Qh8# {[%clk 0:00:34.4]}
1-0

[Event "Betsys MČR v online bleskovém šachu 2021"]
[Site "Chess.com"]
[Date "2021.04.17"]
[Round "1"]
[White "Terilka"]
[Black "conysek"]
[Result "0-1"]
[WhiteElo "1450"]
[BlackElo "2115"]
[TimeControl "180+1"]
[EndTime "9:07:36 PDT"]
[Termination "Uživatel conysek zvítězil na čas"]

1. d4 {[%clk 0:02:56.5]} 1... e6 {[%clk 0:02:57.9]} 2. Nf3 {[%clk 0:02:54.3]}
2... Nf6 {[%clk 0:02:57.7]} 3. e3 {[%clk 0:02:54.2]} 3... c5 {[%clk 0:02:58.3]}
4. Bd3 {[%clk 0:02:53.9]} 4... d5 {[%clk 0:02:58.5]} 5. c3 {[%clk 0:02:53.9]}
5... c4 {[%clk 0:02:59.1]} 6. Bc2 {[%clk 0:02:53.9]} 6... Nc6 {[%clk 0:02:59.5]}
7. b3 {[%clk 0:02:53.7]} 7... cxb3 {[%clk 0:02:58.8]} 8. axb3 {[%clk 0:02:52.6]}
8... Bd6 {[%clk 0:02:58.1]} 9. c4 {[%clk 0:02:51.6]} 9... dxc4 {[%clk
0:02:57.4]} 10. bxc4 {[%clk 0:02:52]} 10... O-O {[%clk 0:02:57.3]} 11. Nc3
{[%clk 0:02:50.9]} 11... Nb4 {[%clk 0:02:50.2]} 12. Bb1 {[%clk 0:02:48.2]} 12...
b6 {[%clk 0:02:39.8]} 13. e4 {[%clk 0:02:32.9]} 13... Be7 {[%clk 0:02:24.6]} 14.
O-O {[%clk 0:02:29.8]} 14... Bb7 {[%clk 0:02:20.7]} 15. Ng5 {[%clk 0:02:00.6]}
15... h6 {[%clk 0:02:13.5]} 16. Nf3 {[%clk 0:01:59.6]} 16... Qc7 {[%clk
0:02:02.7]} 17. Qe2 {[%clk 0:01:49.5]} 17... Rfc8 {[%clk 0:01:56]} 18. Nd2
{[%clk 0:01:44.3]} 18... e5 {[%clk 0:01:50.2]} 19. dxe5 {[%clk 0:01:10.4]} 19...
Qxe5 {[%clk 0:01:46.6]} 20. Nf3 {[%clk 0:01:09.3]} 20... Qxc3 {[%clk 0:01:39.5]}
21. Bb2 {[%clk 0:00:49.6]} 21... Qxc4 {[%clk 0:01:38.4]} 22. Qe3 {[%clk
0:00:43]} 22... Qe6 {[%clk 0:01:21.6]} 23. Nd4 {[%clk 0:00:21.9]} 23... Qg4
{[%clk 0:00:58.9]} 24. f3 {[%clk 0:00:19.3]} 24... Qg5 {[%clk 0:00:55.6]} 25.
Qf2 {[%clk 0:00:14.7]} 25... Bc5 {[%clk 0:00:48.6]} 26. Kh1 {[%clk 0:00:14.4]}
26... Rd8 {[%clk 0:00:42.6]} 27. Rd1 {[%clk 0:00:14]} 27... Nc6 {[%clk
0:00:39.6]} 28. Qc2 {[%clk 0:00:04.1]} 28... Nxd4 {[%clk 0:00:39.4]} 29. Bxd4
{[%clk 0:00:03]} 29... Rxd4 {[%clk 0:00:37.9]} 30. Ba2 {[%clk 0:00:03.4]} 30...
Rxd1+ {[%clk 0:00:37.5]} 31. Rxd1 {[%clk 0:00:04.3]} 31... Rf8 {[%clk 0:00:36]}
32. Qc4 {[%clk 0:00:02.4]} 32... a5 {[%clk 0:00:35]} 33. Qb5 {[%clk 0:00:02.2]}
33... Nxe4 {[%clk 0:00:30.3]} 0-1

[Event "Betsys MČR v online bleskovém šachu 2021"]
[Site "Chess.com"]
[Date "2021.04.17"]
[Round "1"]
[White "sajmon8"]
[Black "xnepom"]
[Result "0-1"]
[WhiteElo "1617"]
[BlackElo "2250"]
[TimeControl "180+1"]
[EndTime "9:07:37 PDT"]
[Termination "Uživatel xnepom zvítězil po vzdání soupeře"]

1. e4 {[%clk 0:03:00.9]} 1... c5 {[%clk 0:02:58.4]} 2. Nf3 {[%clk 0:03:00.3]}
2... Nc6 {[%clk 0:02:58.1]} 3. d4 {[%clk 0:02:58.1]} 3... cxd4 {[%clk
0:02:58.3]} 4. Nxd4 {[%clk 0:02:59]} 4... Nf6 {[%clk 0:02:58.5]} 5. Nc3 {[%clk
0:02:57.9]} 5... e5 {[%clk 0:02:58.6]} 6. Ndb5 {[%clk 0:02:52.9]} 6... d6 {[%clk
0:02:58.9]} 7. Bg5 {[%clk 0:02:50.2]} 7... a6 {[%clk 0:02:55]} 8. Na3 {[%clk
0:02:46.3]} 8... b5 {[%clk 0:02:54.9]} 9. Nd5 {[%clk 0:02:40.8]} 9... Be7 {[%clk
0:02:53.4]} 10. Bxf6 {[%clk 0:02:38.4]} 10... Bxf6 {[%clk 0:02:51.6]} 11. c3
{[%clk 0:02:38.4]} 11... O-O {[%clk 0:02:46.4]} 12. Nc2 {[%clk 0:02:38.3]} 12...
Bg5 {[%clk 0:02:43.1]} 13. Nce3 {[%clk 0:02:38.1]} 13... Ne7 {[%clk 0:02:41.9]}
14. Be2 {[%clk 0:02:34]} 14... Bb7 {[%clk 0:02:38.8]} 15. Bf3 {[%clk 0:02:28.9]}
15... Nxd5 {[%clk 0:02:35.5]} 16. Nxd5 {[%clk 0:02:27.6]} 16... Bxd5 {[%clk
0:02:23.6]} 17. Qxd5 {[%clk 0:02:28.5]} 17... Qb6 {[%clk 0:02:23.9]} 18. Rd1
{[%clk 0:02:25.7]} 18... Rfd8 {[%clk 0:02:20.9]} 19. O-O {[%clk 0:02:25]} 19...
Rac8 {[%clk 0:02:21.3]} 20. Bg4 {[%clk 0:02:09]} 20... Rc5 {[%clk 0:02:16.2]}
21. Qd3 {[%clk 0:02:02.7]} 21... g6 {[%clk 0:02:07.1]} 22. Ra1 {[%clk 0:01:33]}
22... a5 {[%clk 0:02:04.3]} 23. Rfb1 {[%clk 0:01:16.5]} 23... d5 {[%clk
0:01:56.2]} 24. Rd1 {[%clk 0:01:12.9]} 24... dxe4 {[%clk 0:01:40.1]} 25. Qxe4
{[%clk 0:01:09]} 25... Rc4 {[%clk 0:01:36.7]} 26. Qxe5 {[%clk 0:00:38.2]} 26...
Rxg4 {[%clk 0:01:23]} 27. h3 {[%clk 0:00:34.6]} 27... Rf4 {[%clk 0:01:13.1]} 28.
Qxg5 {[%clk 0:00:31.4]} 28... Qxf2+ {[%clk 0:01:06.6]} 29. Kh1 {[%clk
0:00:31.3]} 29... Re8 {[%clk 0:01:02.1]} 30. Qxb5 {[%clk 0:00:23.9]} 30... Re2
{[%clk 0:00:57.3]} 31. Qg5 {[%clk 0:00:17.1]} 31... Rf5 {[%clk 0:00:48.9]} 32.
Qg4 {[%clk 0:00:16.4]} 32... Rxb2 {[%clk 0:00:43.9]} 33. Rf1 {[%clk 0:00:14.9]}
33... Qxf1+ {[%clk 0:00:42.5]} 34. Rxf1 {[%clk 0:00:14.5]} 34... Rxf1+ {[%clk
0:00:43]} 35. Kh2 {[%clk 0:00:15.4]} 35... Rff2 {[%clk 0:00:43.5]} 36. Qc8+
{[%clk 0:00:13.9]} 36... Kg7 {[%clk 0:00:43.5]} 37. Qc4 {[%clk 0:00:11.7]} 37...
Rxg2+ {[%clk 0:00:42.4]} 38. Kh1 {[%clk 0:00:11.6]} 38... Rgd2 {[%clk
0:00:38.4]} 39. Qc5 {[%clk 0:00:11.8]} 39... Rb1+ {[%clk 0:00:37.9]} 0-1

[Event "Betsys MČR v online bleskovém šachu 2021"]
[Site "Chess.com"]
[Date "2021.04.17"]
[Round "1"]
[White "JuliliaR"]
[Black "tomasPardubice"]
[Result "0-1"]
[WhiteElo "1354"]
[BlackElo "2076"]
[TimeControl "180+1"]
[EndTime "9:07:38 PDT"]
[Termination "Uživatel tomasPardubice zvítězil na čas"]

1. d4 {[%clk 0:02:56.6]} 1... Nf6 {[%clk 0:02:59.3]} 2. c4 {[%clk 0:02:53.5]}
2... e6 {[%clk 0:02:54.8]} 3. Nc3 {[%clk 0:02:52.5]} 3... Bb4 {[%clk 0:02:54.2]}
4. Qc2 {[%clk 0:02:51.6]} 4... d5 {[%clk 0:02:53.5]} 5. Nf3 {[%clk 0:02:43.3]}
5... O-O {[%clk 0:02:52.7]} 6. Bg5 {[%clk 0:02:38.4]} 6... h6 {[%clk 0:02:51.8]}
7. Bh4 {[%clk 0:02:36.9]} 7... c6 {[%clk 0:02:50.3]} 8. e3 {[%clk 0:02:35.2]}
8... Nbd7 {[%clk 0:02:49.4]} 9. Be2 {[%clk 0:02:26.4]} 9... Qa5 {[%clk
0:02:48.2]} 10. O-O {[%clk 0:02:16.6]} 10... Bxc3 {[%clk 0:02:38.6]} 11. bxc3
{[%clk 0:02:12.4]} 11... Ne4 {[%clk 0:02:36.9]} 12. Rfc1 {[%clk 0:02:01.3]}
12... f5 {[%clk 0:02:35.2]} 13. Nd2 {[%clk 0:01:54]} 13... Ndf6 {[%clk 0:02:30]}
14. f3 {[%clk 0:01:49.6]} 14... Nxd2 {[%clk 0:02:29.8]} 15. Qxd2 {[%clk
0:01:48.8]} 15... Bd7 {[%clk 0:02:27.8]} 16. Rcb1 {[%clk 0:01:40.7]} 16... Qc7
{[%clk 0:02:12]} 17. Bg3 {[%clk 0:01:38.8]} 17... Qc8 {[%clk 0:02:11.8]} 18.
cxd5 {[%clk 0:01:32.7]} 18... cxd5 {[%clk 0:02:11.4]} 19. Rc1 {[%clk 0:01:24.7]}
19... Qe8 {[%clk 0:02:07.1]} 20. c4 {[%clk 0:01:20.7]} 20... Bc6 {[%clk
0:02:07.1]} 21. cxd5 {[%clk 0:01:16.4]} 21... Nxd5 {[%clk 0:02:02]} 22. Rab1
{[%clk 0:01:11.6]} 22... Qf7 {[%clk 0:01:57.3]} 23. e4 {[%clk 0:01:05.6]} 23...
fxe4 {[%clk 0:01:44.8]} 24. fxe4 {[%clk 0:01:05.2]} 24... Nf4 {[%clk 0:01:44.3]}
25. Bxf4 {[%clk 0:00:59]} 25... Qxf4 {[%clk 0:01:44.1]} 26. Qxf4 {[%clk
0:00:52.3]} 26... Rxf4 {[%clk 0:01:44.4]} 27. Bc4 {[%clk 0:00:46]} 27... Rxe4
{[%clk 0:01:43.2]} 28. Re1 {[%clk 0:00:43.8]} 28... Rxd4 {[%clk 0:01:40.3]} 29.
Bxe6+ {[%clk 0:00:43]} 29... Kh8 {[%clk 0:01:40.2]} 30. Bf5 {[%clk 0:00:40.1]}
30... Rd2 {[%clk 0:01:33.6]} 31. Be4 {[%clk 0:00:33.9]} 31... Re8 {[%clk
0:01:19.7]} 32. Bxc6 {[%clk 0:00:30.6]} 32... Rxe1+ {[%clk 0:01:18.1]} 33. Rxe1
{[%clk 0:00:29.8]} 33... bxc6 {[%clk 0:01:18.6]} 34. Re6 {[%clk 0:00:26.4]}
34... Rxa2 {[%clk 0:01:16.8]} 35. Rxc6 {[%clk 0:00:26.1]} 35... a5 {[%clk
0:01:16.8]} 36. Rc8+ {[%clk 0:00:25.4]} 36... Kh7 {[%clk 0:01:16.2]} 37. Ra8
{[%clk 0:00:25.2]} 37... a4 {[%clk 0:01:14]} 38. h3 {[%clk 0:00:24.5]} 38... h5
{[%clk 0:01:14]} 39. Kh2 {[%clk 0:00:23.4]} 39... h4 {[%clk 0:01:13.7]} 40. Kg1
{[%clk 0:00:20]} 40... a3 {[%clk 0:01:13.5]} 41. Kf1 {[%clk 0:00:17.9]} 41...
Kg6 {[%clk 0:01:12.6]} 42. Ra5 {[%clk 0:00:15.9]} 42... Ra1+ {[%clk 0:01:05.4]}
43. Ke2 {[%clk 0:00:15.4]} 43... a2 {[%clk 0:01:05.1]} 44. Kf2 {[%clk
0:00:13.5]} 44... Kf6 {[%clk 0:01:04.6]} 45. Ke2 {[%clk 0:00:12.2]} 45... Rg1
{[%clk 0:01:03.7]} 46. Kf2 {[%clk 0:00:06.8]} 46... a1=Q {[%clk 0:01:02.7]} 0-1

[Event "Betsys MČR v online bleskovém šachu 2021"]
[Site "Chess.com"]
[Date "2021.04.17"]
[Round "1"]
[White "Federer302"]
[Black "rolkento"]
[Result "0-1"]
[WhiteElo "1637"]
[BlackElo "2273"]
[TimeControl "180+1"]
[EndTime "9:07:40 PDT"]
[Termination "Uživatel rolkento zvítězil matem"]

1. d4 {[%clk 0:02:59]} 1... d5 {[%clk 0:02:59.7]} 2. c4 {[%clk 0:02:58.7]} 2...
c6 {[%clk 0:02:59.6]} 3. Nc3 {[%clk 0:02:58.4]} 3... Nf6 {[%clk 0:02:59.4]} 4.
cxd5 {[%clk 0:02:57.8]} 4... cxd5 {[%clk 0:02:58.6]} 5. Bf4 {[%clk 0:02:56.7]}
5... Nc6 {[%clk 0:02:58.3]} 6. Nf3 {[%clk 0:02:55.3]} 6... e6 {[%clk 0:02:36.3]}
7. e3 {[%clk 0:02:54.7]} 7... Bd6 {[%clk 0:02:31.9]} 8. Bxd6 {[%clk 0:02:53.9]}
8... Qxd6 {[%clk 0:02:32.8]} 9. Be2 {[%clk 0:02:43.6]} 9... O-O {[%clk
0:02:32.4]} 10. O-O {[%clk 0:02:43.2]} 10... a6 {[%clk 0:02:32.1]} 11. a3 {[%clk
0:02:42.5]} 11... Bd7 {[%clk 0:02:31.3]} 12. Rc1 {[%clk 0:02:41.4]} 12... Rfc8
{[%clk 0:02:22.3]} 13. h3 {[%clk 0:02:26.6]} 13... b5 {[%clk 0:02:13.7]} 14. Nh2
{[%clk 0:01:58.4]} 14... Na5 {[%clk 0:01:58.7]} 15. Ng4 {[%clk 0:01:40.9]} 15...
Nxg4 {[%clk 0:01:51.6]} 16. Bxg4 {[%clk 0:01:40.8]} 16... Nc4 {[%clk 0:01:49.8]}
17. Rc2 {[%clk 0:01:20.4]} 17... Nxb2 {[%clk 0:01:24.2]} 18. Rxb2 {[%clk
0:00:58.3]} 18... Rxc3 {[%clk 0:01:21.4]} 19. Rb3 {[%clk 0:00:54.9]} 19... Rac8
{[%clk 0:01:04.1]} 20. Rxc3 {[%clk 0:00:46.8]} 20... Rxc3 {[%clk 0:01:03.7]} 21.
a4 {[%clk 0:00:40.4]} 21... bxa4 {[%clk 0:01:00.3]} 22. Be2 {[%clk 0:00:39.8]}
22... Bb5 {[%clk 0:00:53.7]} 23. Qd2 {[%clk 0:00:35.2]} 23... Qc6 {[%clk
0:00:52.4]} 24. Ra1 {[%clk 0:00:18.6]} 24... g6 {[%clk 0:00:43.9]} 25. Kh2
{[%clk 0:00:15.7]} 25... Rc2 {[%clk 0:00:41]} 26. Bxb5 {[%clk 0:00:14.2]} 26...
axb5 {[%clk 0:00:41]} 27. Qd1 {[%clk 0:00:13.4]} 27... Rxf2 {[%clk 0:00:36.6]}
28. Rc1 {[%clk 0:00:12.8]} 28... Qd6+ {[%clk 0:00:31.2]} 29. Kg1 {[%clk
0:00:12.5]} 29... Qg3 {[%clk 0:00:23.6]} 30. Rc8+ {[%clk 0:00:06.6]} 30... Kg7
{[%clk 0:00:23.1]} 31. Qg4 {[%clk 0:00:02.4]} 31... Rxg2+ {[%clk 0:00:22.5]} 32.
Kf1 {[%clk 0:00:02.5]} 32... Qf2# {[%clk 0:00:22.4]} 0-1